Cogmind - Beta 16.1 @@@ ROGUE MODE // 2026.03.12 @ 22:09:00 Player: IDRpheonix Result: Destroyed by D-53 Grenadier with Mini Grenade Launcher Performance ------------- Evolutions (1) 500 Regions Visited (3) 600 Robots Destroyed (5) 25 Value Destroyed (82) 82 Prototype IDs (0) 0 Alien Tech Used (0) 0 Bonus (-10) -10 TOTAL SCORE: 1197 Bonus ------- Friendly Fire -10 Cogmind --------- Core Integrity 0/400 Matter 288/300 Energy 75/100 System Corruption 1% Temperature Cool (0) Movement Core (150) Ox2 Location -9/Mines Parts ------- > --- POWER (1) -------- (None) > --- PROPULSION (2) --- (None) > --- UTILITY (3) ------ Small Storage Unit Visual Processing Unit Signal Interpreter > --- WEAPON (3) ------- Heavy EM Pulse Gun > --- INVENTORY (8) ---- Light Angular Momentum Engine Heat Sink Targeting Computer Core Shielding Core Shielding Weapon Shielding Peak State ------------ > --- POWER ------------ Ion Engine > --- PROPULSION ------- Compact Wheel Compact Wheel > --- UTILITY ---------- Small Storage Unit Visual Processing Unit Signal Interpreter > --- WEAPON ----------- EM Shotgun Beam Cannon Rocket Launcher > --- INVENTORY -------- Light Ion Engine Wheel Heat Sink Targeting Computer Core Shielding Core Shielding Weapon Shielding Beamcaster [Rating: 13] Favorites ----------- Power Ion Engine Engine Ion Engine Propulsion Compact Wheel Wheel Compact Wheel Utility Small Storage Unit Storage Small Storage Unit Processor Signal Interpreter Weapon Assault Rifle Energy Gun EM Shotgun Energy Cannon Beam Cannon Ballistic Gun Assault Rifle Launcher Rocket Launcher Build | -11 -10 -9 -9 ------- Run | Yrd Mat Mat Min Slots Evolved 2 | . . 2 . Power . | . . . . Propulsion . | . . . . Utility 1 | . . 1 . Weapon 1 | . . 1 . Parts Attached 14 | 6 1 3 4 Power 1 | 1 . . . Engine 1 | 1 . . . Core . | . . . . Reactor . | . . . . Propulsion 3 | 2 . . 1 Treads . | . . . . Leg . | . . . . Wheel 3 | 2 . . 1 Hover . | . . . . Flight . | . . . . Utility 3 | 1 1 1 . Device . | . . . . Storage 1 | 1 . . . Processor 2 | . 1 1 . Hackware . | . . . . Protection . | . . . . Artifact . | . . . . Weapon 7 | 2 . 2 3 Energy Gun 3 | . . . 3 Energy Cannon 1 | . . 1 . Ballistic Gun 2 | 2 . . . Ballistic Cannon . | . . . . Launcher 1 | . . 1 . Special Weapon . | . . . . Impact Weapon . | . . . . Slashing Weapon . | . . . . Piercing Weapon . | . . . . Special Melee Weapon . | . . . . Unidentified Prototypes . | . . . . Parts Lost 7 | . . . 7 Power 1 | . . . 1 Propulsion 2 | . . . 2 Utility . | . . . . Weapon 4 | . . . 4 Highest Loss Streak 7 | . . . 7 To Critical Strikes . | . . . . Average Backups 4 | . 2 4 6 Power . | . . 1 . Propulsion . | . . 1 . Utility 1 | . . . 2 Weapon 1 | . 1 2 1 Tool/Special . | . . . . Unused Backups 10 | . . . 10 Power 3 | . . . 3 Propulsion . | . . . . Utility 5 | . . . 5 Weapon 2 | . . . 2 Tool/Special . | . . . . Average Slot Usage (%) 93 | . 97 96 90 Engine 11 | . 14 11 9 Wheel 22 | . 28 22 18 Storage 11 | . 14 11 11 Processor 18 | . 11 18 22 Energy Gun 1 | . . . 3 Energy Cannon 7 | . . 11 9 Ballistic Gun 15 | . 28 14 7 Launcher 5 | . . 7 8 Peak Build Rating 13 | 6 7 11 13 Average Rating 9 | 4 6 10 10 On Entrance 6 | . 6 7 11 Avg Prop Armor Cover (%) . | . . . . Naked Turns . | . . . . Heaviest Build 20 | 13 13 19 20 Greatest Support 32 | 32 32 32 32 Greatest Overweight (x) 1 | . . . 1 Average Overweight (x) . | . . . . Largest Inventory Capacity 8 | 8 8 8 8 Average Capacity 7 | 7 8 8 8 Most Carried 8 | . 5 5 8 Average Carried 4 | . 2 4 7 Final Capacity 8 | 8 8 8 8 Final Carried 6 | . 5 5 6 Class Distribution -------------------- 48% | Mutant 46% | Skirmisher 4% | Gunner Dominant Class ---------------- Mutant | -10/Materials Skirmisher | -9/Materials Skirmisher | -9/Mines Resources | -11 -10 -9 -9 ----------- Run | Yrd Mat Mat Min Matter Collected 381 | 211 38 . 132 Remotely . | . . . . Salvage Created 138 | . 38 . 100 Parts 11 | . 5 . 6 Haulers Intercepted . | . . . . Recyclers Shooed . | . . . . Parts Field Recycled . | . . . . Retrieved Matter . | . . . . Parts Self-Destructed . | . . . . Prevented . | . . . . Parts Restored . | . . . . Kills | -11 -10 -9 -9 ------- Run | Yrd Mat Mat Min Combat Hostiles Destroyed 8 | . 3 . 5 Guns 4 | . 3 . 1 Cannons 1 | . . . 1 AOE 3 | . . . 3 Classes Destroyed 4 | . 1 . 3 Tunneler 1 | . . . 1 Swarmer 3 | . 3 . . Sentry 1 | . . . 1 Assembled 4 | . . . 4 Best Kill Streak 4 | . 3 . 4 Combat Bots Only 4 | . 3 . 4 Max Kills in Single Turn 2 | . 1 . 2 Gunslinging . | . . . . Exploded 2 | . . . 2 Melee . | . . . . Uniques/NPCs Destroyed . | . . . . Combat | -11 -10 -9 -9 -------- Run | Yrd Mat Mat Min Hostile Shots Fired 31 | . 9 . 22 Missed 2 | . . . 2 Hits 29 | . 9 . 20 Melee 4 | . . . 4 Projectile 25 | . 9 . 16 AOE 18 | . . . 18 Damage Taken 883 | . 78 . 805 Core 428 | . 16 . 412 Absorbed by Shields . | . . . . Core Remaining (%) 96 | 100 93 . . Volleys Fired 20 | . 5 . 15 Largest 3 | . 2 . 3 Hottest 138 | . 40 . 138 Shots Fired 38 | . 10 . 28 Gun 21 | . 10 . 11 Cannon 13 | . . . 13 Launcher 4 | . . . 4 Special . | . . . . Kinetic 13 | . 10 . 3 Thermal 14 | . . . 14 Explosive 4 | . . . 4 Electromagnetic 7 | . . . 7 Robot Hit Streak 5 | . 2 . 5 Robot Miss Streak 3 | . 2 . 3 Penetration Max . | . . . . Secondary Targets . | . . . . Shots Hit Robots 18 | . 4 . 14 Core Hits 18 | . 3 . 15 Critical Kills . | . . . . Critical Parts Destroyed . | . . . . Critical Strikes 1 | . . . 1 Burn 1 | . . . 1 Melee Attacks . | . . . . Impact . | . . . . Slashing . | . . . . Piercing . | . . . . Sneak Attacks . | . . . . Combat Hostiles . | . . . . Follow-up Attacks . | . . . . Damage Inflicted 363 | . 40 . 323 Guns 127 | . 40 . 87 Cannons 103 | . . . 103 Explosions 133 | . . . 133 Melee . | . . . . Ramming . | . . . . Kinetic 52 | . 40 . 12 Thermal 123 | . . . 123 Explosive 133 | . . . 133 Electromagnetic 55 | . . . 55 Impact . | . . . . Slashing . | . . . . Piercing . | . . . . Highest Corruption 1 | . . . 1 Average Corruption 1 | . . . 1 Corruption Purged . | . . . . Corruption Blocked . | . . . . Effects 1 | . . . 1 Parts Rejected 1 | . . . 1 Overload Shots . | . . . . Overflow Damage . | . . . . Projectiles . | . . . . Explosions . | . . . . Melee . | . . . . Knockbacks . | . . . . Impact . | . . . . Kinetic . | . . . . Secondary . | . . . . Self-Inflicted Damage . | . . . . Shots . | . . . . Rammed . | . . . . Targets Rammed . | . . . . Kicked . | . . . . Crushed . | . . . . Highest Temperature 249 | . . . 249 Average Temperature 89 | . . . 89 Received Heat Transfer . | . . . . Siege Activations . | . . . . Martial Activations . | . . . . Shielding Activations . | . . . . Robots Disrupted . | . . . . Combat Hostiles . | . . . . Robots Corrupted . | . . . . Combat Hostiles . | . . . . Parts Fried . | . . . . Impact Corruptions . | . . . . Robots Melted . | . . . . Combat Hostiles . | . . . . Parts Melted . | . . . . Heat Transferred 333 | . . . 333 Parts Sabotaged . | . . . . Parts Stolen . | . . . . Parts Stripped . | . . . . Power Chain Reactions . | . . . . Alert | -11 -10 -9 -9 ------- Run | Yrd Mat Mat Min Maximum Alert Level . | . . . . Low Security (%) 100 | 100 100 100 100 Level 1 . | . . . . Level 2 . | . . . . Level 3 . | . . . . Level 4 . | . . . . Level 5 . | . . . . High Security . | . . . . Max Security . | . . . . Peak Influence 70 | . 70 8 35 Initial 8 | . . 8 . Average 10 | . 28 1 5 Influence Increases 123 | . 70 . 53 Destroy 0b10 Robot/C 80 | . 60 . 20 Destroy 0b10 Robot/NC 5 | . . . 5 Destroy Leader 10 | . 10 . . Destroy Structure 28 | . . . 28 Influence Decreases 123 | . 50 20 53 Entered New Map 12 | . . 12 . Time Decay 99 | . 50 8 41 Lost Part 12 | . . . 12 Squads Dispatched 2 | . 1 1 . Investigation 1 | . . 1 . Extermination . | . . . . Reinforcement 1 | . 1 . . Assault . | . . . . Garrison . | . . . . Intercept . | . . . . Searches Triggered . | . . . . Construction Impeded . | . . . . Haulers Reinforced . | . . . . Active Scanning Responses . | . . . . Cargo Convoy Interrupts . | . . . . Stealth | -11 -10 -9 -9 --------- Run | Yrd Mat Mat Min Distress Signals . | . . . . Communications Jammed . | . . . . Distress Signals . | . . . . Times Spotted 16 | . 6 2 8 Peak Tracking Total 4 | . 3 2 4 Tactical Retreats 1 | . . . 1 Traps | -11 -10 -9 -9 ------- Run | Yrd Mat Mat Min Traps Triggered 1 | . . 1 . Indirectly . | . . . . Trap Hack Attempts . | . . . . Triggered . | . . . . Disarmed . | . . . . Reprogrammed . | . . . . Reused . | . . . . Traps Extracted . | . . . . Installed . | . . . . Triggered . | . . . . Most Traps Carried 2 | . . . 2 Machines | -11 -10 -9 -9 ---------- Run | Yrd Mat Mat Min Machines Disabled 2 | . . . 2 Max in Single Turn 2 | . . . 2 Machines Repaired . | . . . . Machines Dismantled . | . . . . Machines Sabotaged . | . . . . Overloaded Fab Kills . | . . . . Hacking | -11 -10 -9 -9 --------- Run | Yrd Mat Mat Min Machines Accessed 1 | . 1 . . Terminals 1 | . 1 . . Fabricators . | . . . . Repair Stations . | . . . . Recycling Units . | . . . . Scanalyzers . | . . . . Garrison Access . | . . . . Total Hacks 1 | . 1 . . Successful . | . . . . Failed 1 | . 1 . . Catastrophic . | . . . . Database Lockouts . | . . . . Manual . | . . . . Terminals 1 | . 1 . . Fabricators . | . . . . Repair Stations . | . . . . Recycling Units . | . . . . Scanalyzers . | . . . . Garrison Access . | . . . . Terminal Hacks . | . . . . Fabricator Hacks . | . . . . Repair Station Hacks . | . . . . Recycling Unit Hacks . | . . . . Scanalyzer . | . . . . Garrison Access Hacks . | . . . . Unauthorized Hacks . | . . . . Terminals . | . . . . Fabricators . | . . . . Repair Stations . | . . . . Recycling Units . | . . . . Scanalyzers . | . . . . Garrison Access . | . . . . Data Cores Recovered . | . . . . Used . | . . . . Hacking Detections . | . . . . Full Trace Events . | . . . . Feedback Events . | . . . . Feedback Blocked . | . . . . Robot Schematics Acquired . | . . . . Robots Built . | . . . . Authchips . | . . . . Time . | . . . . Total Robot Build Rating . | . . . . Part Schematics Acquired . | . . . . Parts Built . | . . . . Authchips . | . . . . Time . | . . . . Total Part Build Rating . | . . . . Part Studies Acquired . | . . . . Parts Repaired . | . . . . Time . | . . . . Parts Recycled . | . . . . Recycled Matter . | . . . . Retrieved Matter . | . . . . Retrieved Components . | . . . . Parts Scanalyzed . | . . . . Part Schematics Acquired . | . . . . Parts Damaged . | . . . . Bothacking | -11 -10 -9 -9 ------------ Run | Yrd Mat Mat Min Used RIF Installer . | . . . . Robots Hacked . | . . . . Non-combat . | . . . . Combat . | . . . . Robot Hacks Applied . | . . . . Relay Couplers Released . | . . . . Fabnet Peak Effective % . | . . . . Robots Rewired . | . . . . Allies Hacked . | . . . . Hacks Repelled . | . . . . Allies | -11 -10 -9 -9 -------- Run | Yrd Mat Mat Min Total Allies . | . . . . Largest Group . | . . . . Highest-Rated Group . | . . . . Highest-Rated Ally . | . . . . Total Orders . | . . . . Ally Attacks . | . . . . Total Damage . | . . . . Kills . | . . . . Allies Corrupted . | . . . . Allies Melted . | . . . . Intel | -11 -10 -9 -9 ------- Run | Yrd Mat Mat Min Active Infowar (turns) 366 | . . 89 277 Optics 366 | . . 89 277 Robot Analysis Total . | . . . . Derelict Logs Recovered 1 | . . . 1 Drone Launches . | . . . . Drone Recoveries . | . . . . Exploration | -11 -10 -9 -9 ------------- Run | Yrd Mat Mat Min Turns Passed 597 | 47 159 114 277 Spaces Moved 495 | 40 136 110 209 Core 33 | 2 . . 31 Treads . | . . . . Legs . | . . . . Wheels 462 | 38 136 110 178 Hover . | . . . . Flight . | . . . . Fastest Speed 50 | 50 100 100 90 Average Speed 99 | 97 100 100 99 Slowest Speed 100 | 100 100 100 100 Overloaded Moves . | . . . . Propulsion Burnouts . | . . . . Robots Hopped . | . . . . Potential Cave-ins . | . . . . Cave-ins Triggered . | . . . . Exploration Rate (%) 19 | 3 25 14 35 Regions Visited 3 Branch Regions 1 Pre-discovered Areas . | . . . . Known Exits Taken 2 | . 1 1 . Unknown Exits Taken 1 | 1 . . . Scrap Searched . | . . . . Spaces Dug . | . . . . Terrain Destroyed 35 | . . . 35 Melee . | . . . . Projectile . | . . . . AOE 35 | . . . 35 Terrain Rammed . | . . . . Walls Destroyed . | . . . . Machines Disabled . | . . . . Actions | -11 -10 -9 -9 --------- Run | Yrd Mat Mat Min Total 561 | 45 149 113 254 Wait 9 | . 3 . 6 Move 492 | 39 135 109 209 Hop . | . . . . Pick Up 17 | . 5 1 11 Fast Attach 9 | 6 1 1 1 Attach 3 | . . 1 2 Detach . | . . . . Swap 3 | . . 1 2 Drop 8 | . . . 8 Fire 20 | . 5 . 15 Melee . | . . . . Ram . | . . . . Kick . | . . . . Crush . | . . . . Escape Stasis . | . . . . Rewire . | . . . . Trap . | . . . . Miscellaneous . | . . . . Route ------- -11/Scrapyard -10/Materials -9/Materials -9/Mines (discovered 1 exit: *Zio) History --------- Turn | Location | Event 19 | -11/Scrapyard | Discovered new exit (range 15) 48 | -11/Scrapyard | Entered Materials 192 | -10/Materials | Discovered new exit (range 10) 200 | -10/Materials | Identified exit to Materials 207 | -10/Materials | Entered another Materials area 207 | -9/Materials | Evolved 2 slots: Utility x1, Weapon x1 258 | -9/Materials | Discovered new exit (range 16) 299 | -9/Materials | Identified exit to Mines 321 | -9/Materials | Entered Mines 322 | -9/Mines | A Derelict revealed a hidden shortcut to a safe place 324 | -9/Mines | Identified exit to Zion 342 | -9/Mines | Found a hidden stash of uninstalled traps 371 | -9/Mines | Learned 2 Materials zone layouts 445 | -9/Mines | Joined a pair of Derelicts in attacking an 0b10 outpost 496 | -9/Mines | Assembled infested the area 572 | -9/Mines | Core integrity fell below 50% 580 | -9/Mines | Core integrity fell below 20% 595 | -9/Mines | Lost 7 parts (1p2n4w) 598 | -9/Mines | Destroyed by D-53 Grenadier with Mini Grenade Launcher Last Messages --------------- 00558_ System corrupted: Wheel rejected. 00558_ Ion Engine destroyed. 00558_ Beam Cannon destroyed. 00559_ K-01 Serf collects debris. 00560_ The unstable cave ceiling collapses. 00560_ Rocket Launcher destroyed. 00560_ D-53 Grenadier suffers critical hit (Burn). 00560_ K-01 Serf collects debris. 00564_ The unstable cave ceiling collapses. 00564_ Beamcaster destroyed. 00564_ Com. Wheel destroyed. 00564_ K-01 Serf collects debris. 00567_ D-53 Grenadier destroyed. 00569_ The unstable cave ceiling collapses. 00569_ K-01 Serf collects debris. 00571_ The unstable cave ceiling collapses. 00571_ K-01 Serf destroyed. 00575_ F4-N62(g) destroyed. 00576_ The unstable cave ceiling collapses. 00595_ Acquired Hvy. EM Pulse Gun. Map ----- +----------------------------------------------------+ | | | | | | | | | | | | | | | | | | | | | | | | | | | | | | | | | | | | | | | | | | | ?????????????????????????????????????????????????? | | #####????##??????????????????????????????????????? | | #??### ####???????####???????????????????????? | | #### # ##?????## ##??????????????????????? | | ## # @#??????????????????????? | | ##?????????????????????? | | = d ##????????????????????? | | # # ##???????????????????? | | # % ## # ## ## [ ##??????????????????? | | ##### ##??##??###### %##?????????????????? | | ????# ! #???????????## #?????????????????? | | ???## ##???????????## #?????????????????? | | ??## ###??????????# ###?????????????????? | | ??# # # ###????????# ###?????????????????? | | ??# ## #?# ## #?????????????????? | | ??# # #?????????????????? | | ?# * %% ##### #?????????????????? | | %* ## ###???# #?????????????????? | | ! #????????# ##############????? | | ##????????# ! #????? | | ###?????????############## ###### | | ####????????????????????????# | | # ## %! #??????????????????????????# | | ## ?# ?????????????????????????######## | | ?# #?# # ##???????????????????????????????? | | ?###??# ?????????????????????????##?????? | | ??????# ????????????????????????# #????? | | ?????? < #???????????????????????# #???? | | ?????? ???????????????????????# #??? | +----------------------------------------------------+ Best States ------------- Heat Dissipation 28 Energy Generation 10 Energy Capacity 250 Matter Stores 300 Matter Capacity 300 Sight Range 18 Terrain Scan Density 10 Evasion (%) 40 Item Schematics ----------------- None Robot Schematics ------------------ None Fabricated ------------ Nothing Repaired ---------- Nothing Studied --------- None Alien Tech Used ----------------- None Achievements -------------- None Challenges ------------ None Game ------ Seed MiniElectrostormProtomatter Manual? 0 Play Time 00:12:23 Cumulative 10.3 hours Start 2026.03.12 @ 21:56:52 End 2026.03.12 @ 22:09:00 Sessions 1 Manual Loads 0 Difficulty Rogue Special Mode None Game No. 10 Rogue 10 Adventurer 0 Explorer 0 Win Type - Total 0 Types 0/0/0/0/0/0/0/0/0/0 Lore% 4 Gallery% 12 Achievement% 9 Wizard Run 0 Options --------- Layout 1 ASCII 1 Keyboard 1 Movement Numpad Keybinds 0 Fullscreen 1 Font 20/CogTall Map View 54x42 Zoom Use 0% Tactical HUD 1 Map Filters NONE Filters NONE Steam 1 RUN: d848a8a0-d8ba-4650-b0e5-742d9eb23f76